[Event "Early-Titled-Tuesday-Blitz-October-03-2023"]
[Site "Chess.com"]
[Date "2023.10.03"]
[Round "3"]
[White "DarZay"]
[Black "arminmusovic"]
[Result "1-0"]
[WhiteElo "2219"]
[BlackElo "2507"]
[TimeControl "180+1"]
[EndTime "8:29:21 PDT"]
[Termination "DarZay won by checkmate"]

1. e4 {[%clk 0:03:00.9]} 1... c6 {[%clk 0:02:54.5]} 2. d4 {[%clk 0:03:00.2]}
2... d5 {[%clk 0:02:52.4]} 3. Nc3 {[%clk 0:03:00.4]} 3... dxe4 {[%clk
0:02:52.7]} 4. Nxe4 {[%clk 0:03:00.7]} 4... Nf6 {[%clk 0:02:53.2]} 5. Nxf6+
{[%clk 0:02:59.5]} 5... exf6 {[%clk 0:02:54.1]} 6. c3 {[%clk 0:02:59.5]} 6...
Bd6 {[%clk 0:02:54.5]} 7. Bd3 {[%clk 0:02:59.5]} 7... O-O {[%clk 0:02:54.7]} 8.
Qc2 {[%clk 0:02:59.8]} 8... Re8+ {[%clk 0:02:55.3]} 9. Be3 {[%clk 0:03:00]} 9...
Kh8 {[%clk 0:02:56.2]} 10. O-O-O {[%clk 0:02:59.8]} 10... Nd7 {[%clk 0:02:55.2]}
11. Kb1 {[%clk 0:02:59.2]} 11... Nf8 {[%clk 0:02:55.4]} 12. Nf3 {[%clk
0:02:58.1]} 12... Qc7 {[%clk 0:02:54.2]} 13. h4 {[%clk 0:02:53.3]} 13... Bg4
{[%clk 0:02:51.9]} 14. Rde1 {[%clk 0:02:47.3]} 14... c5 {[%clk 0:02:51.7]} 15.
dxc5 {[%clk 0:02:44.5]} 15... Bxc5 {[%clk 0:02:51.3]} 16. Nd4 {[%clk 0:02:44.5]}
16... a6 {[%clk 0:02:49.4]} 17. f3 {[%clk 0:02:44.1]} 17... Bd7 {[%clk
0:02:47.6]} 18. g4 {[%clk 0:02:35.6]} 18... Re7 {[%clk 0:02:43.4]} 19. g5 {[%clk
0:02:15.5]} 19... Rae8 {[%clk 0:02:38.7]} 20. Qf2 {[%clk 0:02:14.5]} 20... f5
{[%clk 0:02:06.5]} 21. Bd2 {[%clk 0:01:23.6]} 21... Rxe1+ {[%clk 0:01:55.7]} 22.
Rxe1 {[%clk 0:01:23.5]} 22... Rxe1+ {[%clk 0:01:55.8]} 23. Qxe1 {[%clk
0:01:23.4]} 23... Qh2 {[%clk 0:01:41.3]} 24. Nxf5 {[%clk 0:01:15.2]} 24... Be6
{[%clk 0:01:28.2]} 25. f4 {[%clk 0:00:56.5]} 25... Bf2 {[%clk 0:01:11.1]} 26.
Qe5 {[%clk 0:00:53.2]} 26... Bxf5 {[%clk 0:01:08]} 27. Qxf5 {[%clk 0:00:53.4]}
27... b5 {[%clk 0:00:42.3]} 28. Qxf7 {[%clk 0:00:49.2]} 28... Bc5 {[%clk
0:00:42.5]} 29. Be3 {[%clk 0:00:38.8]} 29... Qh1+ {[%clk 0:00:37.8]} 30. Kc2
{[%clk 0:00:38.1]} 30... Qg2+ {[%clk 0:00:38.1]} 31. Kb3 {[%clk 0:00:37.7]}
31... Qc6 {[%clk 0:00:37.9]} 32. Bd4 {[%clk 0:00:32.3]} 32... Qe6+ {[%clk
0:00:33.9]} 33. Qxe6 {[%clk 0:00:28.7]} 33... Nxe6 {[%clk 0:00:34.8]} 34. Bxc5
{[%clk 0:00:28.2]} 34... Nxc5+ {[%clk 0:00:35.7]} 35. Kc2 {[%clk 0:00:28.6]}
35... g6 {[%clk 0:00:36.2]} 36. b4 {[%clk 0:00:26.4]} 36... Ne6 {[%clk
0:00:35.8]} 37. f5 {[%clk 0:00:26.2]} 37... Nf4 {[%clk 0:00:35.5]} 38. fxg6
{[%clk 0:00:25.1]} 38... hxg6 {[%clk 0:00:36]} 39. a4 {[%clk 0:00:20.7]} 39...
bxa4 {[%clk 0:00:30.2]} 40. Bxa6 {[%clk 0:00:20.2]} 40... Kg7 {[%clk 0:00:30.9]}
41. Bb5 {[%clk 0:00:19.7]} 41... a3 {[%clk 0:00:28.3]} 42. Kb3 {[%clk 0:00:20]}
42... Ng2 {[%clk 0:00:29]} 43. Kxa3 {[%clk 0:00:19.2]} 43... Nxh4 {[%clk
0:00:29.1]} 44. c4 {[%clk 0:00:18.7]} 44... Kf7 {[%clk 0:00:29.6]} 45. c5 {[%clk
0:00:18.7]} 45... Ke7 {[%clk 0:00:30.2]} 46. Bd3 {[%clk 0:00:17.3]} 46... Nf3
{[%clk 0:00:29.8]} 47. Bxg6 {[%clk 0:00:16.7]} 47... Nxg5 {[%clk 0:00:30.4]} 48.
Bd3 {[%clk 0:00:16.2]} 48... Kd7 {[%clk 0:00:30.7]} 49. b5 {[%clk 0:00:16.3]}
49... Kc7 {[%clk 0:00:29.2]} 50. Kb4 {[%clk 0:00:16.5]} 50... Ne6 {[%clk
0:00:29.1]} 51. b6+ {[%clk 0:00:16.1]} 51... Kb8 {[%clk 0:00:24.6]} 52. c6
{[%clk 0:00:14.2]} 52... Kc8 {[%clk 0:00:25.2]} 53. Bf5 {[%clk 0:00:13.5]} 53...
Kb8 {[%clk 0:00:24.1]} 54. Bxe6 {[%clk 0:00:13.8]} 54... Ka8 {[%clk 0:00:25]}
55. Kc5 {[%clk 0:00:13.7]} 55... Kb8 {[%clk 0:00:25.3]} 56. c7+ {[%clk 0:00:14]}
56... Kb7 {[%clk 0:00:24.2]} 57. c8=Q# {[%clk 0:00:14.1]} 1-0

[Event "Early-Titled-Tuesday-Blitz-October-03-2023"]
[Site "Chess.com"]
[Date "2023.10.03"]
[Round "3"]
[White "GMBenjaminBok"]
[Black "zverr1"]
[Result "1-0"]
[WhiteElo "2991"]
[BlackElo "2508"]
[TimeControl "180+1"]
[EndTime "8:29:23 PDT"]
[Termination "GMBenjaminBok won on time"]

1. d4 {[%clk 0:03:00.9]} 1... Nf6 {[%clk 0:02:57]} 2. c4 {[%clk 0:03:01]} 2...
g6 {[%clk 0:02:57.6]} 3. g3 {[%clk 0:03:00.5]} 3... c6 {[%clk 0:02:57.4]} 4. Nf3
{[%clk 0:02:58.8]} 4... Bg7 {[%clk 0:02:57.5]} 5. Bg2 {[%clk 0:02:58.8]} 5...
O-O {[%clk 0:02:57.9]} 6. O-O {[%clk 0:02:58.2]} 6... d5 {[%clk 0:02:58.6]} 7.
b3 {[%clk 0:02:58.8]} 7... a5 {[%clk 0:02:58.1]} 8. Nc3 {[%clk 0:02:57.9]} 8...
Bf5 {[%clk 0:02:57.8]} 9. Bb2 {[%clk 0:02:57.4]} 9... Ne4 {[%clk 0:02:57.9]} 10.
e3 {[%clk 0:02:57.3]} 10... Nxc3 {[%clk 0:02:58.1]} 11. Bxc3 {[%clk 0:02:58.2]}
11... Be4 {[%clk 0:02:57.6]} 12. Qe2 {[%clk 0:02:58.8]} 12... a4 {[%clk
0:02:57.2]} 13. Rfc1 {[%clk 0:02:57.2]} 13... Nd7 {[%clk 0:02:50.6]} 14. Bf1
{[%clk 0:02:54.8]} 14... axb3 {[%clk 0:02:40.8]} 15. axb3 {[%clk 0:02:53.9]}
15... Qb6 {[%clk 0:02:38.6]} 16. Nd2 {[%clk 0:02:49.5]} 16... Bf5 {[%clk
0:02:36.6]} 17. cxd5 {[%clk 0:02:32.2]} 17... cxd5 {[%clk 0:02:36.1]} 18. Qb5
{[%clk 0:02:32.4]} 18... Qxb5 {[%clk 0:01:45.9]} 19. Bxb5 {[%clk 0:02:33.3]}
19... Rfc8 {[%clk 0:01:46.8]} 20. Rxa8 {[%clk 0:02:19.6]} 20... Rxa8 {[%clk
0:01:47.7]} 21. Bb4 {[%clk 0:02:20.1]} 21... e5 {[%clk 0:01:32.4]} 22. Rc7
{[%clk 0:02:13.2]} 22... Nf8 {[%clk 0:01:05.7]} 23. dxe5 {[%clk 0:02:03.7]}
23... Bxe5 {[%clk 0:01:06.6]} 24. Rxb7 {[%clk 0:02:02.2]} 24... d4 {[%clk
0:00:39.8]} 25. Bc5 {[%clk 0:01:29.4]} 25... dxe3 {[%clk 0:00:33]} 26. Bxe3
{[%clk 0:01:30.3]} 26... Bh3 {[%clk 0:00:27.5]} 27. Ra7 {[%clk 0:01:28.1]} 27...
Rc8 {[%clk 0:00:26.4]} 28. Bc4 {[%clk 0:01:26.2]} 28... Ne6 {[%clk 0:00:22.7]}
29. Nf3 {[%clk 0:01:24.2]} 29... Rd8 {[%clk 0:00:16.8]} 30. Be2 {[%clk
0:01:06.9]} 30... Bf6 {[%clk 0:00:10.5]} 31. Bh6 {[%clk 0:00:47.1]} 31... Rc8
{[%clk 0:00:06.9]} 32. Bf1 {[%clk 0:00:43]} 32... Bg4 {[%clk 0:00:05]} 33. Kg2
{[%clk 0:00:37.1]} 33... Bg7 {[%clk 0:00:04]} 34. Be3 {[%clk 0:00:32.6]} 34...
Bf5 {[%clk 0:00:02.9]} 35. Nd2 {[%clk 0:00:24.4]} 35... Bf6 {[%clk 0:00:02.7]}
36. h3 {[%clk 0:00:20.2]} 36... Rb8 {[%clk 0:00:02.8]} 37. Bc4 {[%clk
0:00:19.1]} 37... Kf8 {[%clk 0:00:01.9]} 38. g4 {[%clk 0:00:17.8]} 38... Bc2
{[%clk 0:00:02.1]} 39. b4 {[%clk 0:00:09.1]} 39... Bd4 {[%clk 0:00:02.3]} 40.
Bxd4 {[%clk 0:00:07.7]} 40... Nxd4 {[%clk 0:00:03.2]} 41. Rxf7+ {[%clk
0:00:07.9]} 41... Ke8 {[%clk 0:00:03.6]} 42. Rxh7 {[%clk 0:00:07.8]} 42... Rxb4
{[%clk 0:00:04.1]} 43. Bd5 {[%clk 0:00:04.9]} 43... Ne2 {[%clk 0:00:02.8]} 44.
Bf3 {[%clk 0:00:03.2]} 44... Nf4+ {[%clk 0:00:02.9]} 45. Kg3 {[%clk 0:00:03.8]}
45... g5 {[%clk 0:00:02.5]} 46. Rg7 {[%clk 0:00:03.8]} 1-0

[Event "Early-Titled-Tuesday-Blitz-October-03-2023"]
[Site "Chess.com"]
[Date "2023.10.03"]
[Round "3"]
[White "karinachess1"]
[Black "temus_galaktionov"]
[Result "1/2-1/2"]
[WhiteElo "2644"]
[BlackElo "2852"]
[TimeControl "180+1"]
[EndTime "8:29:24 PDT"]
[Termination "Game drawn - insufficient material"]

1. d4 {[%clk 0:03:00.9]} 1... c6 {[%clk 0:03:00.1]} 2. c4 {[%clk 0:03:00.3]}
2... g6 {[%clk 0:03:01]} 3. Nf3 {[%clk 0:02:59.3]} 3... d6 {[%clk 0:03:01.9]} 4.
Nc3 {[%clk 0:02:57.8]} 4... Bg7 {[%clk 0:03:01.9]} 5. g3 {[%clk 0:02:55.6]} 5...
Nd7 {[%clk 0:03:01.8]} 6. Bg2 {[%clk 0:02:55.1]} 6... Ngf6 {[%clk 0:02:58.2]} 7.
O-O {[%clk 0:02:55]} 7... O-O {[%clk 0:02:57.4]} 8. e4 {[%clk 0:02:55.1]} 8...
e5 {[%clk 0:02:57.4]} 9. h3 {[%clk 0:02:54.4]} 9... a5 {[%clk 0:02:54.5]} 10.
Be3 {[%clk 0:02:53.9]} 10... exd4 {[%clk 0:02:54.4]} 11. Nxd4 {[%clk 0:02:54.8]}
11... Nc5 {[%clk 0:02:53.1]} 12. Qc2 {[%clk 0:02:49.2]} 12... a4 {[%clk
0:02:53]} 13. Rfe1 {[%clk 0:02:44]} 13... Re8 {[%clk 0:02:50.6]} 14. f4 {[%clk
0:02:33.7]} 14... h5 {[%clk 0:02:48.6]} 15. Bf2 {[%clk 0:02:24.7]} 15... Qa5
{[%clk 0:02:48.3]} 16. Rad1 {[%clk 0:02:05.9]} 16... Qb4 {[%clk 0:02:44.8]} 17.
a3 {[%clk 0:01:59.7]} 17... Qa5 {[%clk 0:02:42.1]} 18. Nf3 {[%clk 0:01:42.1]}
18... Bf8 {[%clk 0:02:37.8]} 19. Bd4 {[%clk 0:01:26.5]} 19... Nh7 {[%clk
0:02:36.6]} 20. f5 {[%clk 0:01:14.8]} 20... Nb3 {[%clk 0:02:28.1]} 21. fxg6
{[%clk 0:01:06.4]} 21... fxg6 {[%clk 0:02:29]} 22. Bf2 {[%clk 0:01:00.9]} 22...
Ng5 {[%clk 0:02:22.8]} 23. Nh4 {[%clk 0:00:30.7]} 23... Nxh3+ {[%clk 0:02:00.1]}
24. Bxh3 {[%clk 0:00:30.7]} 24... Bxh3 {[%clk 0:02:01]} 25. e5 {[%clk
0:00:31.1]} 25... Re6 {[%clk 0:01:57.5]} 26. exd6 {[%clk 0:00:27.6]} 26... Rxe1+
{[%clk 0:01:46.4]} 27. Rxe1 {[%clk 0:00:28.5]} 27... Bf5 {[%clk 0:01:47.1]} 28.
Nxf5 {[%clk 0:00:26]} 28... Qxf5 {[%clk 0:01:48]} 29. Qxf5 {[%clk 0:00:18.4]}
29... gxf5 {[%clk 0:01:48.9]} 30. c5 {[%clk 0:00:16.1]} 30... Kf7 {[%clk
0:01:45]} 31. Kg2 {[%clk 0:00:15.5]} 31... b6 {[%clk 0:01:40.6]} 32. cxb6 {[%clk
0:00:15]} 32... Bxd6 {[%clk 0:01:40.5]} 33. Rd1 {[%clk 0:00:14.4]} 33... Ke6
{[%clk 0:01:40.2]} 34. Kf3 {[%clk 0:00:13.6]} 34... c5 {[%clk 0:01:38.7]} 35.
Nb5 {[%clk 0:00:13.1]} 35... Be5 {[%clk 0:01:36.5]} 36. Re1 {[%clk 0:00:12.1]}
36... Kd5 {[%clk 0:01:36.5]} 37. Be3 {[%clk 0:00:09.3]} 37... Rb8 {[%clk
0:01:24.3]} 38. Bf4 {[%clk 0:00:06.5]} 38... Bxf4 {[%clk 0:01:24.1]} 39. Kxf4
{[%clk 0:00:07.4]} 39... Rxb6 {[%clk 0:01:24.3]} 40. Nc3+ {[%clk 0:00:08.1]}
40... Kc4 {[%clk 0:01:23.1]} 41. Nxa4 {[%clk 0:00:08.3]} 41... Rg6 {[%clk
0:01:18.1]} 42. Nc3 {[%clk 0:00:07.6]} 42... Nd4 {[%clk 0:01:13.9]} 43. Rh1
{[%clk 0:00:05.6]} 43... Rg4+ {[%clk 0:01:05.8]} 44. Ke5 {[%clk 0:00:06]} 44...
Rxg3 {[%clk 0:01:05.4]} 45. Rxh5 {[%clk 0:00:06.2]} 45... Rg2 {[%clk 0:01:05.8]}
46. Nd1 {[%clk 0:00:04]} 46... Re2+ {[%clk 0:01:01.6]} 47. Kf4 {[%clk
0:00:04.4]} 47... Re4+ {[%clk 0:00:56.1]} 48. Kg3 {[%clk 0:00:04.8]} 48... Kd3
{[%clk 0:00:53.2]} 49. Nf2+ {[%clk 0:00:04.8]} 49... Ke3 {[%clk 0:00:52.7]} 50.
Nxe4 {[%clk 0:00:05.7]} 50... Kxe4 {[%clk 0:00:53.4]} 51. Kf2 {[%clk 0:00:05.4]}
51... Kd3 {[%clk 0:00:53.2]} 52. Rh3+ {[%clk 0:00:04.9]} 52... Kc2 {[%clk
0:00:52.2]} 53. a4 {[%clk 0:00:05.4]} 53... Kxb2 {[%clk 0:00:49.4]} 54. a5
{[%clk 0:00:05.9]} 54... c4 {[%clk 0:00:49.4]} 55. a6 {[%clk 0:00:05.7]} 55...
Nb5 {[%clk 0:00:48.2]} 56. Rh5 {[%clk 0:00:05.1]} 56... c3 {[%clk 0:00:45.8]}
57. Rxf5 {[%clk 0:00:05.3]} 57... Na7 {[%clk 0:00:42.3]} 58. Rc5 {[%clk
0:00:05.2]} 58... c2 {[%clk 0:00:43.1]} 59. Rc7 {[%clk 0:00:04.8]} 59... c1=Q
{[%clk 0:00:42.6]} 60. Rxc1 {[%clk 0:00:05.4]} 60... Kxc1 {[%clk 0:00:43.5]} 61.
Ke3 {[%clk 0:00:06.3]} 61... Kb2 {[%clk 0:00:43.9]} 62. Kd4 {[%clk 0:00:07.2]}
62... Kb3 {[%clk 0:00:44.5]} 63. Kc5 {[%clk 0:00:08.1]} 63... Ka4 {[%clk
0:00:45]} 64. Kb6 {[%clk 0:00:09]} 64... Nb5 {[%clk 0:00:45.4]} 65. a7 {[%clk
0:00:08.3]} 65... Nxa7 {[%clk 0:00:45.6]} 1/2-1/2

[Event "Early-Titled-Tuesday-Blitz-October-03-2023"]
[Site "Chess.com"]
[Date "2023.10.03"]
[Round "3"]
[White "igorkovalenko"]
[Black "twofoxniel"]
[Result "1/2-1/2"]
[WhiteElo "2859"]
[BlackElo "2607"]
[TimeControl "180+1"]
[EndTime "8:29:24 PDT"]
[Termination "Game drawn by repetition"]

1. c4 {[%clk 0:03:00.7]} 1... c6 {[%clk 0:02:59.5]} 2. Nc3 {[%clk 0:03:00.7]}
2... d5 {[%clk 0:03:00.2]} 3. Nf3 {[%clk 0:03:01.6]} 3... Nf6 {[%clk 0:02:59.7]}
4. e3 {[%clk 0:03:01.8]} 4... a6 {[%clk 0:02:58.1]} 5. Qc2 {[%clk 0:03:01.6]}
5... g6 {[%clk 0:02:50.3]} 6. d4 {[%clk 0:03:01.4]} 6... Bg7 {[%clk 0:02:50.5]}
7. Bd3 {[%clk 0:03:00.7]} 7... O-O {[%clk 0:02:50.7]} 8. b3 {[%clk 0:03:00.6]}
8... b5 {[%clk 0:02:50.2]} 9. c5 {[%clk 0:03:00.4]} 9... Nbd7 {[%clk 0:02:49.3]}
10. b4 {[%clk 0:02:55.3]} 10... Re8 {[%clk 0:02:44]} 11. Bb2 {[%clk 0:02:55]}
11... e5 {[%clk 0:02:39.6]} 12. dxe5 {[%clk 0:02:52.4]} 12... Ng4 {[%clk
0:02:39.7]} 13. Nd4 {[%clk 0:02:49]} 13... Ndxe5 {[%clk 0:02:31.4]} 14. O-O-O
{[%clk 0:02:39.8]} 14... Nxd3+ {[%clk 0:02:24]} 15. Rxd3 {[%clk 0:02:40.7]}
15... Bd7 {[%clk 0:02:12.2]} 16. a3 {[%clk 0:02:36.6]} 16... a5 {[%clk 0:02:11]}
17. Rd2 {[%clk 0:02:14.6]} 17... Ne5 {[%clk 0:02:09]} 18. Rhd1 {[%clk 0:01:51]}
18... Nc4 {[%clk 0:02:08.7]} 19. Rd3 {[%clk 0:01:50.6]} 19... Qc7 {[%clk
0:01:57]} 20. h3 {[%clk 0:01:49.8]} 20... Ra6 {[%clk 0:01:43.9]} 21. g4 {[%clk
0:01:48.8]} 21... axb4 {[%clk 0:01:42.6]} 22. axb4 {[%clk 0:01:48.7]} 22... Rea8
{[%clk 0:01:42.2]} 23. Qb3 {[%clk 0:01:48.6]} 23... Qh2 {[%clk 0:01:21.4]} 24.
Qc2 {[%clk 0:01:18.4]} 24... Qxh3 {[%clk 0:01:15.2]} 25. f3 {[%clk 0:01:14.2]}
25... Bh6 {[%clk 0:01:07.8]} 26. Qf2 {[%clk 0:01:11.7]} 26... Bxg4 {[%clk
0:00:47.1]} 27. fxg4 {[%clk 0:01:10.2]} 27... Bxe3+ {[%clk 0:00:46.9]} 28. Rxe3
{[%clk 0:01:10.2]} 28... Nxe3 {[%clk 0:00:45.7]} 29. Re1 {[%clk 0:00:57.3]}
29... Nc4 {[%clk 0:00:45.3]} 30. Nc2 {[%clk 0:00:55.6]} 30... Qh6+ {[%clk
0:00:44.4]} 31. g5 {[%clk 0:00:37.6]} 31... Qxg5+ {[%clk 0:00:44.1]} 32. Ne3
{[%clk 0:00:37.6]} 32... Re8 {[%clk 0:00:43.9]} 33. Nd1 {[%clk 0:00:36.5]} 33...
Ra2 {[%clk 0:00:43.1]} 34. Kb1 {[%clk 0:00:34.5]} 34... Rxb2+ {[%clk 0:00:40.8]}
35. Nxb2 {[%clk 0:00:34.6]} 35... Rxe3 {[%clk 0:00:40.4]} 36. Nxc4 {[%clk
0:00:34.1]} 36... Rxe1+ {[%clk 0:00:39.9]} 37. Qxe1 {[%clk 0:00:35]} 37... dxc4
{[%clk 0:00:38.5]} 38. Qe8+ {[%clk 0:00:34.8]} 38... Kg7 {[%clk 0:00:38.8]} 39.
Qxc6 {[%clk 0:00:35.7]} 39... Qd2 {[%clk 0:00:35.9]} 40. Qc7 {[%clk 0:00:28.9]}
40... Qxb4+ {[%clk 0:00:32.7]} 41. Kc2 {[%clk 0:00:26.8]} 41... Qb3+ {[%clk
0:00:32.7]} 42. Kc1 {[%clk 0:00:26.7]} 42... Qc3+ {[%clk 0:00:32.6]} 43. Kd1
{[%clk 0:00:27.3]} 43... b4 {[%clk 0:00:33.3]} 44. c6 {[%clk 0:00:26.1]} 44...
b3 {[%clk 0:00:32.7]} 45. Qb6 {[%clk 0:00:26.5]} 45... b2 {[%clk 0:00:28.3]} 46.
c7 {[%clk 0:00:26.6]} 46... Qc1+ {[%clk 0:00:28.6]} 47. Ke2 {[%clk 0:00:26.8]}
47... b1=Q {[%clk 0:00:28.4]} 48. Qd4+ {[%clk 0:00:26.7]} 48... Kh6 {[%clk
0:00:25.1]} 49. Qh4+ {[%clk 0:00:26.6]} 49... Kg7 {[%clk 0:00:25.3]} 50. Qd4+
{[%clk 0:00:27.5]} 50... f6 {[%clk 0:00:23.4]} 51. Qd7+ {[%clk 0:00:27.5]} 51...
Kh6 {[%clk 0:00:23.7]} 52. Qh3+ {[%clk 0:00:28.1]} 52... Kg5 {[%clk 0:00:24.2]}
53. Qg3+ {[%clk 0:00:28.5]} 53... Kh5 {[%clk 0:00:23.6]} 54. Qh3+ {[%clk
0:00:28.6]} 54... Kg5 {[%clk 0:00:24]} 55. Qg3+ {[%clk 0:00:29.5]} 55... Kh6
{[%clk 0:00:22.4]} 56. Qh3+ {[%clk 0:00:29.3]} 56... Kg7 {[%clk 0:00:22.8]} 57.
Qd7+ {[%clk 0:00:29.6]} 57... Kh6 {[%clk 0:00:23.2]} 58. Qh3+ {[%clk 0:00:30.1]}
1/2-1/2

[Event "Early-Titled-Tuesday-Blitz-October-03-2023"]
[Site "Chess.com"]
[Date "2023.10.03"]
[Round "3"]
[White "Ergali_Suleimen"]
[Black "Leonid_Starozhilov"]
[Result "1-0"]
[WhiteElo "2520"]
[BlackElo "2747"]
[TimeControl "180+1"]
[EndTime "8:29:25 PDT"]
[Termination "Ergali_Suleimen won on time"]

1. e4 {[%clk 0:02:55.2]} 1... g6 {[%clk 0:02:59.6]} 2. d4 {[%clk 0:02:54.9]}
2... Bg7 {[%clk 0:03:00.5]} 3. f4 {[%clk 0:02:54.6]} 3... d6 {[%clk 0:02:59]} 4.
Nf3 {[%clk 0:02:54]} 4... Nf6 {[%clk 0:02:55.9]} 5. Nc3 {[%clk 0:02:52.4]} 5...
O-O {[%clk 0:02:53.9]} 6. e5 {[%clk 0:02:52.3]} 6... dxe5 {[%clk 0:02:51.8]} 7.
fxe5 {[%clk 0:02:52.2]} 7... Nd5 {[%clk 0:02:51.8]} 8. Bc4 {[%clk 0:02:52]} 8...
Nxc3 {[%clk 0:02:50.1]} 9. bxc3 {[%clk 0:02:51.9]} 9... c5 {[%clk 0:02:50.4]}
10. O-O {[%clk 0:02:51.9]} 10... Bg4 {[%clk 0:02:50.4]} 11. h3 {[%clk
0:02:50.2]} 11... Bxf3 {[%clk 0:02:50.6]} 12. Qxf3 {[%clk 0:02:49.2]} 12... Nc6
{[%clk 0:02:51.5]} 13. Bxf7+ {[%clk 0:02:47.6]} 13... Kh8 {[%clk 0:02:51.6]} 14.
Be3 {[%clk 0:02:30.3]} 14... cxd4 {[%clk 0:02:51]} 15. cxd4 {[%clk 0:02:22.4]}
15... Nxd4 {[%clk 0:02:51]} 16. Qxb7 {[%clk 0:02:14.8]} 16... Nf5 {[%clk
0:02:36]} 17. Rxf5 {[%clk 0:01:47.3]} 17... gxf5 {[%clk 0:02:35.1]} 18. Bb3
{[%clk 0:01:44.9]} 18... f4 {[%clk 0:02:31.4]} 19. Bf2 {[%clk 0:01:42.8]} 19...
f3 {[%clk 0:02:30.3]} 20. gxf3 {[%clk 0:01:40.5]} 20... Bxe5 {[%clk 0:02:24.3]}
21. Re1 {[%clk 0:01:39.7]} 21... Bf6 {[%clk 0:02:21.4]} 22. Qe4 {[%clk
0:01:37.9]} 22... Qd2 {[%clk 0:02:15.6]} 23. Re2 {[%clk 0:01:32.5]} 23... Qg5+
{[%clk 0:02:09.9]} 24. Kh1 {[%clk 0:01:27.4]} 24... Rad8 {[%clk 0:02:09.4]} 25.
h4 {[%clk 0:01:00.9]} 25... Rd1+ {[%clk 0:02:05.1]} 26. Kh2 {[%clk 0:01:01]}
26... Qc1 {[%clk 0:01:48.5]} 27. f4 {[%clk 0:00:48.2]} 27... Rd2 {[%clk
0:01:31.1]} 28. Qe3 {[%clk 0:00:32.8]} 28... Rfd8 {[%clk 0:01:28.7]} 29. Rxd2
{[%clk 0:00:30.5]} 29... Qxd2 {[%clk 0:01:24.4]} 30. Kg3 {[%clk 0:00:30.6]}
30... Qxe3+ {[%clk 0:00:47.2]} 31. Bxe3 {[%clk 0:00:30.8]} 31... Bd4 {[%clk
0:00:48.1]} 32. Bc1 {[%clk 0:00:30.4]} 32... Kg7 {[%clk 0:00:45]} 33. Kf3 {[%clk
0:00:25.8]} 33... Kf6 {[%clk 0:00:44.6]} 34. Ba3 {[%clk 0:00:24.3]} 34... Bc3
{[%clk 0:00:34.5]} 35. Bc5 {[%clk 0:00:23.8]} 35... a5 {[%clk 0:00:34.3]} 36. a4
{[%clk 0:00:22]} 36... Rd1 {[%clk 0:00:32.2]} 37. Be3 {[%clk 0:00:17.8]} 37...
Rh1 {[%clk 0:00:18.8]} 38. Kg4 {[%clk 0:00:18.2]} 38... e6 {[%clk 0:00:10]} 39.
Bf2 {[%clk 0:00:14.9]} 39... Rd1 {[%clk 0:00:08.3]} 40. Kf3 {[%clk 0:00:15]}
40... h5 {[%clk 0:00:05.3]} 41. Be3 {[%clk 0:00:14.3]} 41... Rd8 {[%clk
0:00:05.4]} 42. Bc4 {[%clk 0:00:12]} 42... Rg8 {[%clk 0:00:04.4]} 43. Ke4 {[%clk
0:00:09.1]} 43... Be1 {[%clk 0:00:02.4]} 44. Be2 {[%clk 0:00:03.7]} 1-0

[Event "Early-Titled-Tuesday-Blitz-October-03-2023"]
[Site "Chess.com"]
[Date "2023.10.03"]
[Round "3"]
[White "TokChess"]
[Black "Darko-Dimitrijevic"]
[Result "0-1"]
[WhiteElo "2498"]
[BlackElo "2207"]
[TimeControl "180+1"]
[EndTime "8:29:30 PDT"]
[Termination "Darko-Dimitrijevic won by resignation"]

1. e4 {[%clk 0:03:00.9]} 1... d6 {[%clk 0:02:57.5]} 2. Nf3 {[%clk 0:02:59]} 2...
Nf6 {[%clk 0:02:57.4]} 3. Nc3 {[%clk 0:02:57.7]} 3... c6 {[%clk 0:02:57]} 4. a4
{[%clk 0:02:57.1]} 4... Qa5 {[%clk 0:02:56.2]} 5. h3 {[%clk 0:02:51.1]} 5... e5
{[%clk 0:02:56.1]} 6. Bc4 {[%clk 0:02:48.8]} 6... Be7 {[%clk 0:02:54.8]} 7. O-O
{[%clk 0:02:47.8]} 7... O-O {[%clk 0:02:54.7]} 8. d4 {[%clk 0:02:42.2]} 8...
Nbd7 {[%clk 0:02:49.7]} 9. Bg5 {[%clk 0:02:33]} 9... Re8 {[%clk 0:02:45.9]} 10.
Re1 {[%clk 0:02:28.6]} 10... a6 {[%clk 0:02:37.6]} 11. Bh4 {[%clk 0:02:19.7]}
11... h6 {[%clk 0:02:36]} 12. Bb3 {[%clk 0:01:52.5]} 12... Nf8 {[%clk 0:02:34]}
13. Qd2 {[%clk 0:01:35.6]} 13... Qc7 {[%clk 0:02:26.8]} 14. Rad1 {[%clk
0:01:32.8]} 14... Ng6 {[%clk 0:02:24.5]} 15. Bg3 {[%clk 0:01:32.7]} 15... b5
{[%clk 0:02:22]} 16. Nh4 {[%clk 0:01:10.4]} 16... Nxh4 {[%clk 0:02:00.2]} 17.
Bxh4 {[%clk 0:01:11.3]} 17... b4 {[%clk 0:01:59.5]} 18. Na2 {[%clk 0:01:04.2]}
18... a5 {[%clk 0:01:58.7]} 19. Bg3 {[%clk 0:00:57.1]} 19... Ba6 {[%clk
0:01:50.6]} 20. Nc1 {[%clk 0:00:49.6]} 20... c5 {[%clk 0:01:40.4]} 21. dxe5
{[%clk 0:00:46.2]} 21... dxe5 {[%clk 0:01:39.9]} 22. Bd5 {[%clk 0:00:37.8]}
22... Rad8 {[%clk 0:01:34.1]} 23. Qe3 {[%clk 0:00:38.1]} 23... Nxd5 {[%clk
0:01:22.3]} 24. exd5 {[%clk 0:00:38.3]} 24... Bd6 {[%clk 0:01:20.7]} 25. Qf3
{[%clk 0:00:31.4]} 25... Qd7 {[%clk 0:01:05.5]} 26. b3 {[%clk 0:00:28]} 26... f5
{[%clk 0:01:04.5]} 27. Bh2 {[%clk 0:00:22.9]} 27... c4 {[%clk 0:00:58.5]} 28.
bxc4 {[%clk 0:00:16.5]} 28... Bxc4 {[%clk 0:00:57.7]} 29. Nb3 {[%clk 0:00:17.2]}
29... Qxa4 {[%clk 0:00:54.8]} 30. Ra1 {[%clk 0:00:16.3]} 30... Qd7 {[%clk
0:00:51.6]} 31. Nxa5 {[%clk 0:00:15.2]} 31... e4 {[%clk 0:00:47.5]} 32. Qe3
{[%clk 0:00:12.5]} 32... Bxh2+ {[%clk 0:00:45.1]} 33. Kxh2 {[%clk 0:00:13.4]}
33... Qxd5 {[%clk 0:00:44.9]} 34. Red1 {[%clk 0:00:11.4]} 34... Qe5+ {[%clk
0:00:43.8]} 35. Kg1 {[%clk 0:00:11.5]} 35... Bf7 {[%clk 0:00:38.2]} 36. Nc6
{[%clk 0:00:07.9]} 36... Rxd1+ {[%clk 0:00:36.2]} 37. Rxd1 {[%clk 0:00:04.7]}
37... Qb5 {[%clk 0:00:35.1]} 38. Nd4 {[%clk 0:00:03.7]} 38... Qc5 {[%clk
0:00:32.6]} 39. Qf4 {[%clk 0:00:01.8]} 39... Rd8 {[%clk 0:00:30]} 40. Qe3 {[%clk
0:00:02.1]} 40... Qc3 {[%clk 0:00:27]} 41. h4 {[%clk 0:00:02]} 41... Qc5 {[%clk
0:00:23.2]} 42. Rd2 {[%clk 0:00:02]} 42... Bc4 {[%clk 0:00:21.1]} 43. g3 {[%clk
0:00:02.3]} 43... Kh7 {[%clk 0:00:19.1]} 44. Kg2 {[%clk 0:00:02]} 44... Ba6
{[%clk 0:00:08.8]} 45. Kg1 {[%clk 0:00:02]} 45... Bc4 {[%clk 0:00:08.3]} 46. Kh2
{[%clk 0:00:02.3]} 46... Ba6 {[%clk 0:00:08.1]} 47. Kg2 {[%clk 0:00:02.8]} 47...
Bc4 {[%clk 0:00:07.8]} 48. Kg1 {[%clk 0:00:03.4]} 48... Ba6 {[%clk 0:00:07.7]}
49. Kg2 {[%clk 0:00:04]} 49... Bb7 {[%clk 0:00:07.9]} 50. Ne6 {[%clk 0:00:03.2]}
50... Qxe3 {[%clk 0:00:06.7]} 51. fxe3 {[%clk 0:00:03.2]} 51... Rxd2+ {[%clk
0:00:06.7]} 0-1